fUSD/lending_fUSD_20250124
["ID","MTS","AMOUNT","RATE_DAILY","PERIOD"]
[350269110,1737753047324,-500.0,0.00019542,2]
[350269111,1737753047333,-500.0,0.00019542,2]
[350269112,1737753047342,-500.0,0.00019542,2]
[350269113,1737753047351,-500.0,0.00019542,2]
[350269114,1737753047362,-500.0,0.00019542,2]
[350269115,1737753047371,-500.0,0.00019542,2]
[350269116,1737753047380,-500.0,0.00019542,2]
[350269117,1737753047389,-500.0,0.00019542,2]
[350269118,1737753047398,-500.0,0.00019542,2]
[350269119,1737753047408,-500.0,0.00019542,2]
[350269120,1737753047419,-500.0,0.00019542,2]
[350269121,1737753047428,-500.0,0.00019542,2]
[350269122,1737753047438,-500.0,0.00019542,2]
[350269123,1737753047447,-500.0,0.00019542,2]
[350269124,1737753047456,-500.0,0.00019542,2]
[350269125,1737753047466,-500.0,0.00019542,2]
[350269126,1737753047475,-500.0,0.00019542,2]
[350269127,1737753047486,-639.8,0.00019542,2]
[350269128,1737753047496,-500.0,0.00019542,2]
[350269129,1737753047506,-500.0,0.00019542,2]
[350269130,1737753047515,-500.0,0.00019542,2]
[350269131,1737753047525,-759.17,0.00019542,2]
[350269132,1737753047534,-500.0,0.00019542,2]
[350269133,1737753047543,-350.05628898,0.00019542,2]
[350269134,1737753047552,-596.1,0.00019542,2]
[350269135,1737753047562,-500.0,0.00019542,2]
[350269136,1737753047571,-500.0,0.00019542,2]
[350269137,1737753047581,-598.9,0.00019542,2]
[350269138,1737753047590,-500.0,0.00019542,2]
[350269139,1737753047600,-266.0,0.00019542,2]
[350269140,1737753047613,-500.0,0.00019542,2]
[350269141,1737753047623,-601.13,0.00019542,2]
[350269142,1737753047632,-500.0,0.00019542,2]
[350269143,1737753047642,-1086.23,0.00019542,2]
[350269144,1737753047651,-185.75089464,0.00019542,2]
[350269145,1737753047666,-314.24910536,0.00019542,2]
[350269146,1737753047675,-211.13533829,0.00019542,2]
[350269147,1737753047802,-500.0,0.00019541,2]
[350269148,1737753047811,-357.79466171,0.00019542,2]
[350269149,1737753047820,-500.0,0.00019542,2]
[350269150,1737753047830,-500.0,0.00019542,2]
[350269151,1737753047839,-242.68437829,0.00019542,2]
[350269152,1737753047850,-257.31562171,0.00019542,2]
[350269153,1737753047859,-500.0,0.00019542,2]
[350269154,1737753047868,-1000.0,0.00019542,2]
[350269155,1737753047878,-500.0,0.00019542,2]
[350269156,1737753047887,-500.0,0.00019542,2]
[350269157,1737753047896,-500.0,0.00019542,2]
[350269158,1737753047905,-500.0,0.00019542,2]
[350269159,1737753047914,-642.04,0.00019542,2]
[350269160,1737753047923,-671.52,0.00019542,2]
[350269161,1737753047932,-1086.83,0.00019542,2]
[350269162,1737753047942,-500.0,0.00019542,2]
[350269163,1737753047951,-500.0,0.00019542,2]
[350269164,1737753047961,-500.0,0.00019542,2]
[350269165,1737753047970,-500.0,0.00019542,2]
[350269166,1737753047979,-500.0,0.00019542,2]
[350269167,1737753047988,-500.0,0.00019542,2]
[350269168,1737753047997,-711.68,0.00019542,2]
[350269169,1737753048007,-1285.89,0.00019542,2]
[350269170,1737753048016,-236.56,0.00019542,2]
[350269171,1737753048026,-500.0,0.00019542,2]
[350269172,1737753048035,-735.48,0.00019542,2]
[350269173,1737753048044,-500.0,0.00019542,2]
[350269174,1737753048054,-461.67418109,0.00019542,2]
[350269175,1737753048063,-500.0,0.00019542,2]
[350269176,1737753048073,-500.0,0.00019542,2]
[350269177,1737753048082,-500.0,0.00019542,2]
[350269178,1737753048091,-1165.75,0.00019542,2]
[350269179,1737753048100,-500.0,0.00019542,2]
[350269180,1737753048110,-409.39371956,0.00019542,2]
[350269181,1737753048119,-500.0,0.00019542,2]
[350269182,1737753048129,-515.08,0.00019542,2]
[350269183,1737753048139,-500.0,0.00019542,2]
[350269184,1737753048148,-704.15,0.00019542,2]
[350269185,1737753048158,-290.68150021,0.00019542,2]
[350269186,1737753048167,-1747.18,0.00019542,2]
[350269187,1737753048177,-500.0,0.00019543,2]
[350269188,1737753048188,-500.0,0.00019543,2]
[350269189,1737753048197,-500.0,0.00019543,2]
[350269190,1737753048207,-500.0,0.00019543,2]
[350269191,1737753048344,-500.0,0.00019543,2]
[350269192,1737753048354,-500.0,0.00019543,2]
[350269193,1737753048364,-620.59297818,0.00019543,2]
[350269194,1737753048374,-500.0,0.00019543,2]
[350269195,1737753048383,-500.0,0.00019543,2]
[350269196,1737753048393,-155.54784793,0.00019576,2]
[350269197,1737753048403,-11099.56131958,0.00019582,2]
[350269198,1737753048412,-150.9868803,0.00019599,2]
[350269199,1737753048422,-633.72035905,0.00019635,2]
[350269200,1737753048567,-500.0,0.0001913,2]
[350269201,1737753048577,-53.63964095,0.00019635,2]
[350269202,1737753048587,-244.37004,0.00019678,2]
[350269203,1737753048600,-464.481138,0.00019678,2]
[350269204,1737753048611,-500.0,0.00019678,2]
[350269205,1737753048621,-500.0,0.00019678,2]
[350269206,1737753048631,-500.0,0.00019678,2]
[350269207,1737753048642,-287.71,0.00019678,2]
[350269208,1737753048652,-715.62,0.00019678,2]
[350269209,1737753048662,-500.0,0.00019678,2]
[350269210,1737753048672,-500.0,0.00019678,2]
[350269211,1737753048686,-900.03,0.00019678,2]
[350269212,1737753048696,-500.0,0.00019678,2]
[350269213,1737753048706,-643.05,0.00019678,2]
[350269214,1737753048716,-266.91636395,0.00019678,2]
[350269215,1737753048726,-683.15833043,0.00019678,2]
[350269216,1737753048738,-524.69702,0.00019678,2]
[350269217,1737753048749,-190.06464957,0.00019678,2]
[350269218,1737753048759,-500.0,0.00019678,2]
[350269219,1737753048768,-608.81,0.00019678,2]
[350269220,1737753048777,-500.0,0.00019678,2]
[350269221,1737753048787,-500.0,0.00019678,2]
[350269222,1737753048796,-500.0,0.00019678,2]
[350269223,1737753048805,-500.0,0.00019678,2]
[350269224,1737753048814,-500.0,0.00019678,2]
[350269225,1737753048824,-915.65,0.00019678,2]
[350269226,1737753048834,-134.36735038,0.00019678,2]
[350269227,1737753048845,-365.63264962,0.00019678,2]
[350269228,1737753048855,-702.77,0.00019678,2]
[350269229,1737753048864,-500.0,0.00019678,2]
[350269230,1737753048874,-500.0,0.00019678,2]
[350269231,1737753048883,-942.02,0.00019678,2]
[350269232,1737753048892,-500.0,0.00019678,2]
[350269233,1737753048902,-1091.08,0.00019678,2]
[350269234,1737753048912,-500.0,0.00019678,2]
[350269235,1737753048922,-500.0,0.00019678,2]
[350269236,1737753048932,-500.0,0.00019678,2]
[350269237,1737753048942,-500.0,0.00019678,2]
[350269238,1737753048951,-534.14,0.00019678,2]
[350269239,1737753048960,-500.0,0.00019678,2]
[350269240,1737753048970,-500.0,0.00019678,2]
[350269241,1737753048980,-500.0,0.00019678,2]
[350269242,1737753048990,-500.0,0.00019679,2]
[350269243,1737753048999,-509.6,0.00019679,2]
[350269244,1737753049009,-500.0,0.00019679,2]
[350269245,1737753049018,-500.0,0.00019679,2]
[350269246,1737753049028,-811.08,0.00019679,2]
[350269247,1737753049037,-500.0,0.00019679,2]
[350269248,1737753049047,-500.0,0.00019679,2]
[350269249,1737753049056,-500.0,0.00019679,2]
[350269250,1737753049066,-500.0,0.00019679,2]
[350269251,1737753049076,-477.661747,0.00019679,2]
[350269252,1737753049085,-452.32,0.00019679,2]
[350269253,1737753049095,-500.0,0.00019679,2]
[350269254,1737753049104,-500.0,0.00019679,2]
[350269255,1737753049113,-500.0,0.00019679,2]
[350269256,1737753049122,-500.0,0.00019679,2]
[350269257,1737753049132,-500.0,0.00019679,2]
[350269258,1737753049141,-500.0,0.00019679,2]
[350269259,1737753049150,-500.0,0.00019679,2]
[350269260,1737753049160,-500.0,0.00019679,2]
[350269261,1737753049170,-500.0,0.00019679,2]
[350269262,1737753049179,-500.0,0.00019679,2]
[350269263,1737753049190,-500.0,0.00019679,2]
[350269264,1737753049200,-500.0,0.00019679,2]
[350269265,1737753049210,-759.17,0.00019679,2]
[350269266,1737753049219,-596.1,0.00019679,2]
[350269267,1737753049230,-500.0,0.00019679,2]
[350269268,1737753049239,-500.0,0.00019679,2]
[350269269,1737753049250,-598.9,0.00019679,2]
[350269270,1737753049260,-500.0,0.00019679,2]
[350269271,1737753049269,-500.0,0.00019679,2]
[350269272,1737753049279,-601.13,0.00019679,2]
[350269273,1737753049288,-500.0,0.00019679,2]
[350269274,1737753049302,-1086.23,0.00019679,2]
[350269275,1737753049311,-190.72737384,0.00019679,2]
[350269276,1737753049321,-568.93,0.00019679,2]
[350269277,1737753049331,-500.0,0.00019679,2]
[350269278,1737753049340,-500.0,0.00019679,2]
[350269279,1737753049350,-500.0,0.00019679,2]
[350269280,1737753049359,-290.3177356,0.00019679,2]
[350269281,1737753049391,-209.6822644,0.00019679,2]
[350269282,1737753049402,-1000.0,0.00019679,2]
[350269283,1737753049411,-416.3609656,0.00019679,2]
[350269284,1737753049588,1807.0,0.000142,5]
[350269285,1737753141660,310.0,0.000152,5]
[350269287,1737753190687,155.4,0.00010137,2]
[350269298,1737753908426,327008.77,0.00012,2]
[350269299,1737753908457,1000000.0,0.00012,2]
[350269300,1737753908484,553834.99462896,0.00012,2]
[350269301,1737753931711,170.03236683,0.0002,120]
[350269302,1737753943086,-168.26,0.00013995,2]
[350269303,1737753943107,-773.0,0.000141,5]
[350269304,1737753943128,-768.12,0.00016082,2]
[350269305,1737753943148,-365.57031161,0.00016612,2]
[350269306,1737753943168,-167.07,0.00016712,2]
[350269307,1737753943189,-200.80139035,0.00017581,2]
[350269308,1737753943209,-150.0,0.000176,2]
[350269309,1737753943231,-365.57031161,0.00017631,2]
[350269310,1737753943252,-1629.72,0.00017676,2]
[350269311,1737753943275,-24.39049209,0.0001768,2]
[350269312,1737754026118,-550.0,0.00015,2]
[350269313,1737754026142,-300.0,0.00016898,2]
[350269314,1737754026169,-2416.20889544,0.00016899,2]
[350269315,1737754029089,-6716.27896881,0.00016899,2]
[350269316,1737754038104,-1941.66795305,0.00016899,2]
[350269319,1737754094568,176.42,0.00010137,2]
[350269323,1737754117005,245.76527327,0.000148,120]
[350269329,1737754145083,-2741.20415751,0.00016899,2]
[350269330,1737754145106,-600.0,0.00017,2]
[350269331,1737754145127,-1003.14466249,0.00017619,2]
[350269332,1737754145639,3504.94905629,0.00022004,120]
[350269333,1737754170077,-496.85533751,0.00017619,2]
[350269334,1737754170099,-4000.0,0.00017631,2]
[350269335,1737754170121,-333.57,0.00017647,2]
[350269336,1737754170141,-464.79,0.00017678,2]
[350269337,1737754170164,-300.0,0.0001768,2]
[350269338,1737754170185,-23900.0,0.00017681,2]
[350269339,1737754170206,-2108.36,0.00017711,2]
[350269340,1737754170227,-250.0,0.00017731,2]
[350269341,1737754170248,-156.57,0.0001779,30]
[350269342,1737754170268,-1000.0,0.00017862,2]
[350269343,1737754171501,3323.89072249,0.0001768,2]
[350269354,1737754231947,-277.43975866,0.0001768,2]
[350269355,1737754232070,-1403.74231279,0.0001768,2]
[350269356,1737754232081,-403.21492514,0.0001768,2]
[350269357,1737754232235,-3156.12504352,0.0001768,2]
[350269358,1737754232245,-300.0,0.00017999,2]
[350269359,1737754232255,-1169.30415815,0.00018,3]
[350269360,1737754232264,-8920.30495095,0.00018,3]
[350269361,1737754232274,-248.94,0.00018039,2]
[350269362,1737754232283,-252.03,0.00018039,2]
[350269363,1737754232293,-254.74,0.00018039,2]
[350269364,1737754232302,-252.09,0.00018039,2]
[350269365,1737754232311,-249.83,0.00018039,2]
[350269366,1737754232321,-465.29,0.00018058,2]
[350269367,1737754232330,-2162.42,0.00018121,2]
[350269368,1737754232339,-850.0,0.00018138,2]
[350269369,1737754232348,-253.28,0.00018139,2]
[350269370,1737754232358,-250.83,0.00018139,2]
[350269371,1737754232367,-246.91,0.00018139,2]
[350269372,1737754232376,-245.11,0.00018139,2]
[350269385,1737754232556,-249.52,0.00018139,2]
[350269386,1737754232567,-249.86,0.00018139,2]
[350269388,1737754232576,-252.96,0.00018139,2]
[350269389,1737754232585,-254.65,0.00018139,2]
[350269391,1737754232594,-253.36,0.00018139,2]
[350269393,1737754232603,-249.78,0.00018139,2]
[350269394,1737754232614,-700.0,0.00018139,2]
[350269396,1737754232623,-500.0,0.00018139,2]
[350269398,1737754232633,-250.0,0.0001817,2]
[350269399,1737754232642,-250.0,0.00018217,2]
[350269401,1737754232651,-1893.61,0.00018272,2]
[350269403,1737754232661,-768.12,0.00018346,2]
[350269404,1737754232674,-174.2,0.00018453,2]
[350269406,1737754232683,-172.94,0.00018454,2]
[350269408,1737754232692,-1229.07,0.00018454,2]
[350269409,1737754232702,-30373.0,0.00018508,2]
[350269411,1737754232711,-187.39396875,0.00018508,2]
[350269413,1737754232720,-333.57,0.0001853,2]
[350269414,1737754232730,-2160.0,0.000189,2]
[350269416,1737754232739,-7390.71481889,0.000189,2]
[350269418,1737754232748,-1702.1308,0.00018931,2]
[350269419,1737754232757,-4305.58197734,0.00018948,2]
[350269421,1737754232767,-500.0,0.00018986,2]
[350269423,1737754232776,-716.47954,0.00019,2]
[350269424,1737754232785,-160.898,0.00019,2]
[350269426,1737754232794,-1526.477,0.00019,2]
[350269428,1737754232803,-21334.99227626,0.00019,2]
[350269429,1737754232812,-650.0,0.00019,2]
[350269431,1737754232821,-158.47563014,0.00019029,2]
[350269433,1737754232830,-460.9844,0.0001903,2]
[350269435,1737754232839,-6345.1231,0.00019031,2]
[350269437,1737754232848,-827.7268,0.00019031,2]
[350269438,1737754232858,-4148.5058,0.00019031,2]
[350269439,1737754232867,-4578.56,0.00019031,2]
[350269440,1737754232876,-16125.1716,0.00019031,2]
[350269441,1737754232885,-235.58,0.00019119,2]
[350269442,1737754232895,-923.23,0.00019123,2]
[350269443,1737754232904,-530.35,0.00019123,2]
[350269444,1737754232913,-438.72,0.00019123,2]
[350269445,1737754232924,-773.52,0.00019123,2]
[350269446,1737754232934,-773.52,0.00019123,2]
[350269447,1737754232943,-438.72,0.00019123,2]
[350269448,1737754232952,-438.72,0.00019123,2]
[350269449,1737754232962,-500.0,0.00019128,2]
[350269450,1737754232973,-515.69,0.00019128,2]
[350269452,1737754232982,-500.0,0.00019128,2]
[350269453,1737754232992,-500.0,0.00019128,2]
[350269455,1737754233001,-566.92,0.00019128,2]
[350269457,1737754233011,-500.0,0.00019128,2]
[350269459,1737754233020,-500.0,0.00019128,2]
[350269461,1737754233029,-551.89,0.00019128,2]
[350269463,1737754233039,-500.0,0.00019128,2]
[350269465,1737754233048,-500.0,0.00019128,2]
[350269467,1737754233058,-500.0,0.00019128,2]
[350269469,1737754233068,-500.0,0.00019128,2]
[350269471,1737754233077,-500.0,0.00019128,2]
[350269473,1737754233086,-500.0,0.00019128,2]
[350269475,1737754233096,-500.0,0.00019128,2]
[350269477,1737754233106,-529.12,0.00019128,2]
[350269479,1737754233115,-625.67,0.00019128,2]
[350269481,1737754233124,-828.31,0.00019128,2]
[350269483,1737754233134,-500.0,0.00019128,2]
[350269485,1737754233144,-500.0,0.00019128,2]
[350269487,1737754233154,-500.0,0.00019128,2]
[350269489,1737754233163,-1217.27,0.00019128,2]
[350269491,1737754233175,-500.0,0.00019128,2]
[350269493,1737754233184,-500.0,0.00019128,2]
[350269495,1737754233193,-500.0,0.00019128,2]
[350269497,1737754233203,-500.0,0.00019128,2]
[350269499,1737754233212,-500.0,0.00019128,2]
[350269501,1737754233222,-500.0,0.00019128,2]
[350269503,1737754233231,-500.0,0.00019128,2]
[350269505,1737754233241,-495.074301,0.00019128,2]
[350269507,1737754233250,-500.0,0.00019128,2]
[350269508,1737754233259,-500.0,0.00019128,2]
[350269510,1737754233268,-500.0,0.00019128,2]
[350269512,1737754233278,-500.0,0.00019128,2]
[350269514,1737754233287,-500.0,0.00019128,2]
[350269516,1737754233296,-500.0,0.00019128,2]
[350269518,1737754233305,-500.0,0.00019128,2]
[350269520,1737754233315,-500.0,0.00019128,2]
[350269522,1737754233324,-500.0,0.00019128,2]
[350269524,1737754233333,-500.0,0.00019129,2]
[350269526,1737754233342,-500.0,0.00019129,2]
[350269528,1737754233352,-500.0,0.00019129,2]
[350269530,1737754233361,-500.0,0.00019129,2]
[350269532,1737754233370,-500.0,0.00019129,2]
[350269534,1737754233380,-500.0,0.00019129,2]
[350269536,1737754233390,-500.0,0.00019129,2]
[350269538,1737754233400,-500.0,0.00019129,2]
[350269540,1737754233410,-500.0,0.00019129,2]
[350269542,1737754233422,-500.0,0.00019129,2]
[350269544,1737754233431,-500.0,0.00019129,2]
[350269546,1737754233441,-500.0,0.00019129,2]
[350269548,1737754233451,-500.0,0.00019129,2]
[350269550,1737754233461,-500.0,0.00019129,2]
[350269552,1737754233471,-500.0,0.00019129,2]
[350269554,1737754233480,-607.0447303,0.00019129,2]
[350269556,1737754233490,-500.0,0.00019129,2]
[350269558,1737754233500,-500.0,0.00019129,2]
[350269560,1737754233509,-500.0,0.00019129,2]
[350269562,1737754233519,-500.0,0.00019129,2]
[350269564,1737754233528,-500.0,0.00019129,2]
[350269566,1737754233538,-500.0,0.00019129,2]
[350269568,1737754233549,-689.81,0.00019129,2]
[350269570,1737754233559,-500.0,0.00019129,2]
[350269572,1737754233569,-241.55888075,0.00019129,2]
[350269574,1737754233579,-182.6907378,0.00019129,2]
[350269576,1737754233589,-500.0,0.00019129,2]
[350269578,1737754233599,-482.85358188,0.00019129,2]
[350269580,1737754233610,-438.17784157,0.00019129,2]
[350269582,1737754233620,-500.0,0.00019129,2]
[350269584,1737754233631,-500.0,0.00019129,2]
[350269586,1737754233640,-500.0,0.00019129,2]
[350269588,1737754233650,-500.0,0.00019129,2]
[350269590,1737754233660,-500.0,0.00019129,2]
[350269592,1737754233671,-500.0,0.00019129,2]
[350269594,1737754233680,-290.37064,0.00019129,2]
[350269596,1737754233689,-500.0,0.00019129,2]
[350269598,1737754233699,-500.0,0.00019129,2]
[350269600,1737754233708,-325.52804445,0.00019129,2]
[350269602,1737754233717,-500.0,0.00019129,2]
[350269604,1737754233727,-500.0,0.00019129,2]
[350269606,1737754233737,-500.0,0.00019129,2]
[350269608,1737754233746,-500.0,0.00019129,2]
[350269610,1737754233756,-500.0,0.00019129,2]
[350269612,1737754233765,-500.0,0.00019129,2]
[350269614,1737754233775,-500.0,0.00019129,2]
[350269616,1737754233785,-500.0,0.00019129,2]
[350269618,1737754233794,-500.0,0.00019129,2]
[350269620,1737754233803,-500.0,0.00019129,2]
[350269622,1737754233815,-500.0,0.00019129,2]
[350269624,1737754233825,-500.0,0.00019129,2]
[350269626,1737754233835,-500.0,0.00019129,2]
[350269628,1737754233845,-515.37762454,0.00019129,2]
[350269630,1737754233855,-500.0,0.00019129,2]
[350269632,1737754233866,-500.0,0.00019129,2]
[350269634,1737754233876,-500.0,0.00019129,2]
[350269636,1737754233887,-500.0,0.00019129,2]
[350269638,1737754233896,-500.0,0.00019129,2]
[350269640,1737754233906,-500.0,0.00019129,2]
[350269642,1737754233919,-500.0,0.00019129,2]
[350269644,1737754233930,-500.0,0.00019129,2]
[350269646,1737754233940,-500.0,0.00019129,2]
[350269648,1737754233950,-500.0,0.00019129,2]
[350269650,1737754233961,-500.0,0.00019129,2]
[350269652,1737754233973,-500.0,0.00019129,2]
[350269654,1737754233983,-500.0,0.00019129,2]
[350269656,1737754233992,-500.0,0.00019129,2]
[350269658,1737754234001,-500.0,0.00019129,2]
[350269660,1737754234013,-500.0,0.00019129,2]
[350269662,1737754234022,-500.0,0.00019129,2]
[350269664,1737754234033,-500.0,0.00019129,2]
[350269666,1737754234043,-500.0,0.00019129,2]
[350269668,1737754234052,-500.0,0.00019129,2]
[350269670,1737754234062,-500.0,0.00019129,2]
[350269672,1737754234072,-500.0,0.00019129,2]
[350269674,1737754234081,-500.0,0.00019129,2]
[350269676,1737754234091,-500.0,0.00019129,2]
[350269678,1737754234100,-500.0,0.00019129,2]
[350269680,1737754234110,-500.0,0.00019129,2]
[350269682,1737754234119,-500.0,0.00019129,2]
[350269684,1737754234129,-500.0,0.00019129,2]
[350269686,1737754234139,-500.0,0.00019129,2]
[350269688,1737754234149,-500.0,0.00019129,2]
[350269690,1737754234159,-500.0,0.00019129,2]
[350269692,1737754234171,-500.0,0.00019129,2]
[350269694,1737754234183,-500.0,0.00019129,2]
[350269696,1737754234193,-243.62,0.00019129,2]
[350269698,1737754234202,-500.0,0.00019129,2]
[350269700,1737754234212,-500.0,0.00019129,2]
[350269702,1737754234221,-500.0,0.00019129,2]
[350269704,1737754234230,-605.9,0.00019129,2]
[350269706,1737754234240,-500.0,0.00019129,2]
[350269708,1737754234250,-500.0,0.00019129,2]
[350269710,1737754234259,-666.26,0.00019129,2]
[350269712,1737754234269,-500.0,0.00019129,2]
[350269714,1737754234278,-500.0,0.00019129,2]
[350269716,1737754234288,-500.0,0.00019129,2]
[350269718,1737754234297,-500.0,0.00019129,2]
[350269720,1737754234306,-559.08,0.00019129,2]
[350269722,1737754234315,-500.0,0.00019129,2]
[350269724,1737754234325,-500.0,0.00019129,2]
[350269726,1737754234335,-500.0,0.00019129,2]
[350269728,1737754234344,-500.0,0.00019129,2]
[350269730,1737754234354,-500.0,0.00019129,2]
[350269732,1737754234363,-500.0,0.00019129,2]
[350269734,1737754234372,-956.0,0.00019129,2]
[350269736,1737754234382,-500.0,0.00019129,2]
[350269738,1737754234391,-500.0,0.00019129,2]
[350269740,1737754234400,-545.45,0.00019129,2]
[350269742,1737754234410,-500.0,0.00019129,2]
[350269744,1737754234422,-500.0,0.00019129,2]
[350269746,1737754234431,-501.37,0.00019129,2]
[350269748,1737754234441,-500.0,0.00019129,2]
[350269750,1737754234450,-500.0,0.00019129,2]
[350269752,1737754234460,-620.35,0.00019129,2]
[350269754,1737754234469,-500.0,0.00019129,2]
[350269756,1737754234479,-629.25,0.00019129,2]
[350269758,1737754234489,-500.0,0.00019129,2]
[350269760,1737754234498,-500.0,0.00019129,2]
[350269762,1737754234508,-354.86,0.00019129,2]
[350269764,1737754234517,-500.0,0.00019129,2]
[350269766,1737754234526,-500.0,0.00019129,2]
[350269768,1737754234536,-500.0,0.00019129,2]
[350269770,1737754234545,-500.0,0.00019129,2]
[350269772,1737754234555,-500.0,0.00019129,2]
[350269774,1737754234565,-836.52,0.00019129,2]
[350269776,1737754234575,-1028.07,0.00019129,2]
[350269778,1737754234584,-500.0,0.00019129,2]
[350269780,1737754234594,-1194.61,0.00019129,2]
[350269781,1737754234604,-500.0,0.00019129,2]
[350269782,1737754234614,-500.0,0.00019129,2]
[350269783,1737754234624,-500.0,0.00019129,2]
[350269784,1737754234633,-500.0,0.00019129,2]
[350269785,1737754234643,-720.82,0.00019129,2]
[350269786,1737754234653,-500.0,0.00019129,2]
[350269787,1737754234662,-500.0,0.00019129,2]
[350269788,1737754234677,-500.0,0.00019129,2]
[350269790,1737754234686,-500.0,0.00019129,2]
[350269792,1737754234695,-500.0,0.00019129,2]
[350269794,1737754234704,-500.0,0.00019129,2]
[350269796,1737754234713,-500.0,0.00019129,2]
[350269798,1737754234722,-1226.74,0.00019129,2]
[350269800,1737754234731,-861.13,0.00019129,2]
[350269802,1737754234740,-500.0,0.00019129,2]
[350269804,1737754234749,-500.0,0.00019129,2]
[350269806,1737754234759,-500.0,0.00019129,2]
[350269808,1737754234768,-500.0,0.00019129,2]
[350269810,1737754234777,-500.0,0.00019129,2]
[350269812,1737754234785,-500.0,0.00019129,2]
[350269814,1737754234794,-500.0,0.00019129,2]
[350269816,1737754234804,-690.0,0.00019129,2]
[350269818,1737754234812,-500.0,0.00019129,2]
[350269820,1737754234822,-408.16933293,0.00019129,2]
[350269822,1737754234831,-500.0,0.00019129,2]
[350269824,1737754234840,-500.0,0.00019129,2]
[350269826,1737754234850,-500.0,0.00019129,2]
[350269828,1737754234859,-500.0,0.00019129,2]
[350269830,1737754234869,-500.0,0.00019129,2]
[350269832,1737754234878,-500.0,0.00019129,2]
[350269834,1737754234887,-500.0,0.00019129,2]
[350269836,1737754234897,-500.0,0.00019129,2]
[350269838,1737754234905,-500.0,0.00019129,2]
[350269840,1737754234914,-1053.69,0.00019129,2]
[350269842,1737754234926,-500.0,0.00019129,2]
[350269844,1737754234935,-500.0,0.00019129,2]
[350269846,1737754234945,-544.16,0.00019129,2]
[350269848,1737754234954,-500.0,0.00019129,2]
[350269850,1737754234964,-500.0,0.00019129,2]
[350269852,1737754234974,-500.0,0.00019129,2]
[350269854,1737754234986,-500.0,0.00019129,2]
[350269856,1737754234995,-500.0,0.00019129,2]
[350269858,1737754235004,-500.0,0.00019129,2]
[350269860,1737754235015,-500.0,0.00019129,2]
[350269862,1737754235024,-500.0,0.00019129,2]
[350269864,1737754235033,-529.66425359,0.00019129,2]
[350269866,1737754235041,-500.0,0.00019129,2]
[350269867,1737754235051,-500.0,0.00019129,2]
[350269869,1737754235060,-500.0,0.00019129,2]
[350269872,1737754235071,-854.37,0.00019129,2]
[350269873,1737754235080,-500.0,0.00019129,2]
[350269876,1737754235089,-500.0,0.00019129,2]
[350269877,1737754235098,-500.0,0.00019129,2]
[350269880,1737754235107,-500.0,0.00019129,2]
[350269881,1737754235116,-1585.77,0.00019129,2]
[350269884,1737754235125,-500.0,0.00019129,2]
[350269886,1737754235135,-500.0,0.00019129,2]